Workbook

Sheet Расчет согласно ГОСТ
B2: Проектный возраст | D2: Выбрать возраст конструкции
B3: Схема А | D3: Выбрать схему проведения испытания
B4: ВИДЫ ИСПЫТАНИЙ
B5: 1 | C5: Кубы | D5: Выбрать вид испытания для контроля
B6: 2
B7: 3
B8: 4
B9: 5
U10: Общее число участков измерений для расчета характеристик однородности прочности бетона партии конструкций должно быть не менее 20.
B11: Контроль монолитных конструкций производится партиями изготовленных за определенное время (ГОСТ 18105-2010). В которые включают конструкции или бетонную смесь, изготовленные по одной технологии за определенный промежуток времени продолжительностью от одной смены до одной недели (ГОСТ 18105-2010 п.п. 5.1) Контроль прочности бетона для БСГ (кубы) проводят по схеме А, Б, в которые включают бетонную смесь одного номинального состава, изготовленная по одной технологии за определенный промежуток времени продолжительностью от одной смены (сутки). | K11: Промежуточные расчеты | N11: ЦЕНА
N12: 200 | O12: 150 | P12: 150 | Q12: 900 | R12: =2500+1500 -> 4000
B13: № п/п | C13: Наименование конструкции | D13: РАЗМЕРЫ | J13: Кол-во залитых конструкций за смену (ПАРТИЯ) | N13: Кол-во испытаний по неразрушающему контролю
D14: Длина | E14: Ширина | F14: Высота | G14: Площадь | H14: Объем | N14: Кубы | O14: Молоток Шмидта | P14: Ультразвук | Q14: Отрыв со скалыванием | R14: Керны
B15: 1 | C15: Фундамент | G15: =IF(SUM(D15:F15)=0,"",D15*E15) ->  | H15: =IF(SUM(D15:F15)=0,"",D15*E15*F15) ->  | K15: =_xlfn.CEILING.PRECISE(IF(H15="",0,H15/100),1) -> 0 | L15: =_xlfn.CEILING.PRECISE(IF(I15="",0,I15/100),1) -> 0 | M15: =IF(K15=0,L15,IF(L15=0,K15,"")) -> 0 | N15: =IF(ISNUMBER(MATCH(N$14,$C$5:$C$9,0)),IF($M15=0,"",IF($B$2=$W$23,M15*3,IF($B$2=$W$22,M15*3,IF($B$2=$W$24,M15*3,"")))),"") ->  | O15: =IF(ISNUMBER(MATCH(O$14,$C$5:$C$9,0)),IF($J15="","",IF($B$2=$W$23,3,IF($B$2=$W$22,1,IF($B$2=$W$24,3,"")))),"") ->  | Q15: =IF(ISNUMBER(MATCH(Q$14,$C$5:$C$9,0)),IF($J15="","",IF($B$2=$W$23,3,IF($B$2=$W$22,"",IF($B$2=$W$24,3,"")))),"") ->  | R15: =IF(ISNUMBER(MATCH(R$14,$C$5:$C$9,0)),IF($J15="","",IF($B$2=$W$23,3,IF($B$2=$W$22,"",IF($B$2=$W$24,3,"")))),"") -> 
B16: 2 | C16: Стены | H16: =IF(SUM(D16:F16)=0,"",D16*E16*F16) ->  | I16: 670.8 | J16: 10 | K16: =_xlfn.CEILING.PRECISE(IF(H16="",0,H16/100),1) -> 0 | L16: =_xlfn.CEILING.PRECISE(IF(I16="",0,I16/100),1) -> 7 | M16: =IF(K16=0,L16,IF(L16=0,K16,"")) -> 7 | N16: 15 | Q16: =IF(ISNUMBER(MATCH(Q$14,$C$5:$C$9,0)),IF($J16="","",IF($B$2=$W$23,3,IF($B$2=$W$22,"",IF($B$2=$W$24,3,"")))),"") ->  | R16: =IF(ISNUMBER(MATCH(R$14,$C$5:$C$9,0)),IF($J16="","",IF($B$2=$W$23,3,IF($B$2=$W$22,"",IF($B$2=$W$24,3,"")))),"") ->  | U16: Кубы | W16: Схема А
B17: 3 | C17: Пилоны | K17: =_xlfn.CEILING.PRECISE(IF(H17="",0,H17/100),1) -> 0 | L17: 0 | M17: 0 | N17: =IF(ISNUMBER(MATCH(N$14,$C$5:$C$9,0)),IF($M17=0,"",IF($B$2=$W$23,M17*3,IF($B$2=$W$22,M17*3,IF($B$2=$W$24,M17*3,"")))),"") ->  | O17: =IF(ISNUMBER(MATCH(O$14,$C$5:$C$9,0)),IF($J17="","",IF($B$2=$W$23,$J17*6,IF($B$2=$W$22,1,IF($B$2=$W$24,3,"")))),"") ->  | P17: =IF(ISNUMBER(MATCH(P$14,$C$5:$C$9,0)),IF($J17="","",IF($B$2=$W$23,$J17*6,IF($B$2=$W$22,1,IF($B$2=$W$24,3,"")))),"") ->  | Q17: =IF(ISNUMBER(MATCH(Q$14,$C$5:$C$9,0)),IF($J17="","",IF($B$2=$W$23,3,IF($B$2=$W$22,"",IF($B$2=$W$24,3,"")))),"") ->  | U17: Молоток Шмидта | W17: Схема Б
B18: 4 | C18: Колонны | G18: =IF(SUM(D18:F18)=0,"",D18*E18) ->  | I18: 37.4 | J18: 83 | K18: =_xlfn.CEILING.PRECISE(IF(H18="",0,H18/100),1) -> 0 | L18: 1 | M18: 1 | N18: 3 | O18: =IF(ISNUMBER(MATCH(O$14,$C$5:$C$9,0)),IF($J18="","",IF($B$2=$W$23,$J18*6,IF($B$2=$W$22,1,IF($B$2=$W$24,3,"")))),"") ->  | P18: =IF(ISNUMBER(MATCH(P$14,$C$5:$C$9,0)),IF($J18="","",IF($B$2=$W$23,$J18*6,IF($B$2=$W$22,1,IF($B$2=$W$24,3,"")))),"") ->  | U18: Ультразвук | W18: Схема В
B19: 5 | C19: Ригель | K19: =_xlfn.CEILING.PRECISE(IF(H19="",0,H19/100),1) -> 0 | L19: 0 | M19: 0 | O19: =IF(ISNUMBER(MATCH(O$14,$C$5:$C$9,0)),IF($J19="","",IF($B$2=$W$23,3,IF($B$2=$W$22,1,IF($B$2=$W$24,3,"")))),"") ->  | U19: Отрыв со скалыванием | W19: Схема Г
B20: 6 | C20: Балка | K20: =_xlfn.CEILING.PRECISE(IF(H20="",0,H20/100),1) -> 0 | L20: 0 | M20: =IF(K20=0,L20,IF(L20=0,K20,"")) -> 0 | U20: Керны
B21: 7 | C21: Плита перекрытия | I21: 232.6 | J21: 2 | K21: =_xlfn.CEILING.PRECISE(IF(H21="",0,H21/100),1) -> 0 | L21: 3 | M21: =IF(K21=0,L21,IF(L21=0,K21,"")) -> 3 | N21: 9
H22: =IF(SUM(H15:H21)=0,SUM(I15:I21),IF(SUM(I15:I21)=0,SUM(H15:H21),"")) -> 940.8 | W22: Промежуточный возраст
W23: Проектный возраст
B24: Стоимость работ от 1 м³ бетона: | D24: =IF(N29=0,"",IF(H22=0,"",N29/H22)) -> 5.739795918 | J24: Схема А | N24: =IF($B$3=$W$16,SUM(N15:N21),"") -> 27 | O24: Данная схема не применима для этих схем при неразрушающем контроле | W24: Экспертная оценка
J25: Схема Б | N25: =IF($B$3=$W$17,SUM(N15:N21),"") -> 
J26: Схема В | O26: =IF($B$3=$W$18,SUM(O15:O21),"") ->  | P26: =IF($B$3=$W$18,SUM(P15:P21),"") ->  | Q26: =IF($B$3=$W$18,SUM(Q15:Q21),"") ->  | R26: =IF($B$3=$W$18,SUM(R15:R21),"") ->  | AC26: Если данная ячейка N24 имеет значение менее 30, то:
J27: Схема Г | O27: =IF($B$3=$W$19,SUM(O16:O22),"") ->  | P27: =IF($B$3=$W$19,SUM(P16:P22),"") ->  | Q27: =IF($B$3=$W$19,SUM(Q15:Q21),"") ->  | R27: =IF($B$3=$W$19,SUM(R15:R21),"") ->  | S27: =IF(B3=W19,"Приемка бетона путем сравнения его фактической прочности с требуемой без учета характеристик однородности бетона по прочности не допускается","") ->  | AD27: Всплывает примечание с текстом: Слишком мало значений для определения характеристик однородности прочности бетона. Нужно не менее 30 шт.
J28: ЦЕНА | N28: =IF(B3=W16,N24*$N$12,IF(B3=W17,N25*$N$12,"")) -> 5400 | O28: =IF($B$3=$W$18,O$26*O$12,IF($B$3=$W$19,O$27*O$12,"")) ->  | P28: =IF($B$3=$W$18,P$26*P$12,IF($B$3=$W$19,P$27*P$12,"")) ->  | Q28: =IF($B$3=$W$18,Q$26*Q$12,IF($B$3=$W$19,Q$27*Q$12,"")) ->  | R28: =IF($B$3=$W$18,R$26*R$12,IF($B$3=$W$19,R$27*R$12,"")) -> 
J29: Общая сумма: | N29: =IF(SUM(N28:R28)=0,"",SUM(N28:R28)) -> 5400 | AC29: Если данная ячейка N25 имеет значение менее 15, то:
AD30: Всплывает примечание с текстом: Слишком мало значений для определения характеристик однородности прочности бетона. Нужно не менее 15 шт.
AC32: Если данная ячейка О26 имеет значение менее 20, то:
AD33: Всплывает примечание с текстом: Слишком мало значений для определения однородности бетона. Общее число участков измерений для расчета характеристик однородности прочности бетона партии конструкций должно быть не менее 20.
AC35: Если данная ячейка Р26 имеет значение менее 20, то:
AD36: Всплывает примечание с текстом: Слишком мало значений для определения однородности бетона. Общее число участков измерений для расчета характеристик однородности прочности бетона партии конструкций должно быть не менее 20.
AC38: Если данная ячейка Q26 имеет значение менее 12, то:
AD39: Всплывает примечание с текстом: Слишком мало значений для определения однородности бетона. Общее число участков измерений для расчета характеристик однородности прочности бетона партии конструкций должно быть не менее 12.
AC41: Если данная ячейка R26 имеет значение менее 3, то:
AD42: Всплывает примечание с текстом: Слишком мало значений для определения однородности бетона. Общее число участков измерений для расчета характеристик однородности прочности бетона партии конструкций должно быть не менее 3.

Sheet Лист2
B2: ЗАТРАТЫ на (заработную плату сотрудникам лаборатории) за год
C3: Январь | D3: Февраль | E3: Март | F3: Апрель | G3: Май | H3: Июнь | I3: Июль | J3: Август | K3: Сентябрь | L3: Октябрь | M3: Ноябрь | N3: Декабрь
B4: Нач. лаборатории | C4: 70000 | D4: 70000 | E4: 70000 | F4: 70000 | G4: 70000 | H4: 70000 | I4: 70000 | J4: 70000 | K4: 70000 | L4: 70000 | M4: 70000 | N4: 70000
B5: Вед. Инженер-технолог | C5: 65000 | D5: 65000 | E5: 65000 | F5: 65000 | G5: 65000 | H5: 65000 | I5: 65000 | J5: 65000 | K5: 65000 | L5: 65000 | M5: 65000 | N5: 65000
B6: Инженер-технолог | C6: 60000 | D6: 60000 | E6: 60000 | F6: 60000 | G6: 60000 | H6: 60000 | I6: 60000 | J6: 60000 | K6: 60000 | L6: 60000 | M6: 60000 | N6: 60000
B7: Инженер-технолог | C7: 60000 | D7: 60000 | E7: 60000 | F7: 60000 | G7: 60000 | H7: 60000 | I7: 60000 | J7: 60000 | K7: 60000 | L7: 60000 | M7: 60000 | N7: 60000
B8: Инженер | C8: 50000 | D8: 50000 | E8: 50000 | F8: 50000 | G8: 50000 | H8: 50000 | I8: 50000 | J8: 50000 | K8: 50000 | L8: 50000 | M8: 50000 | N8: 50000
C9: =SUM(C4:C8) -> 305000 | D9: =SUM(D4:D8) -> 305000 | E9: 305000 | F9: 305000 | G9: 305000 | H9: 305000 | I9: 305000 | J9: 305000 | K9: 305000 | L9: 305000 | M9: 305000 | N9: 305000
B10: Налог (17 %) | C10: =C9*17%+C9 -> 356850 | D10: =D9*17%+D9 -> 356850 | E10: 356850 | F10: 356850 | G10: 356850 | H10: 356850 | I10: 356850 | J10: 356850 | K10: 356850 | L10: 356850 | M10: 356850 | N10: 356850
C11: =SUM(C10:N10) -> 4282200
P13: Пример:
P14: Промежуточный возраст (7 суток) | R14: Промежуточный возраст (28 суток)
B15: Ведомость вертикальных элементов секций 1,2 (на один этаж) | P15: Схема А
B16: Колонны
E17: длина | F17: ширина | G17: высота | H17: Vм³ | I17: Общий Vм³ | P17: шт | R17: шт
B18: К-1.1 | C18: шт | D18: 22 | E18: 0.2 | F18: 0.8 | G18: 2.82 | H18: =E18*F18*G18 -> 0.4512 | I18: =(H18*D18)+(H19*D19)+(H20*D20)+(H21*D21)+(H22*D22) -> 37.4496 | P18: 3 | Q18: =P18*200/I18 -> 16.02153294 | R18: 3 | S18: =R18*200/I18 -> 16.02153294
B19: К-1.2 | C19: шт | D19: 33 | E19: 0.2 | F19: 0.8 | G19: 2.82 | H19: =E19*F19*G19 -> 0.4512
B20: К-1.3 | C20: шт | D20: 12 | E20: 0.2 | F20: 0.8 | G20: 2.82 | H20: 0.4512
B21: К-2.2 | C21: шт | D21: 14 | E21: 0.2 | F21: 0.8 | G21: 2.82 | H21: 0.4512
B22: К-3.2а | C22: шт | D22: 2 | E22: 0.2 | F22: 0.8 | G22: 2.82 | H22: 0.4512
B24: СТЕНЫ | P24: шт | R24: шт
E25: длина | F25: ширина | G25: высота | H25: Vм³ | I25: Общий Vм³ | P25: 18 | Q25: =P25*200/I26 -> 7.152213601 | R25: 18 | S25: =R25*200/I26 -> 7.152213601
B26: Стена Ст-2.1 | C26: п/м | D26: 33.4 | E26: =D26 -> 33.4 | F26: 0.16 | G26: 2.82 | H26: =E26*F26*G26 -> 15.07008 | I26: =H26*D26 -> 503.340672
B28: Плита перекрытия | P28: шт | R28: шт
E29: длина | F29: ширина | G29: высота | H29: Vм³ | I29: Общий Vм³ | P29: 9 | Q29: =P29*200/I30 -> 7.738607051 | R29: 9 | S29: =R29*200/I30 -> 7.738607051
B30: Плита перекрытия П-1; П-2 | C30: шт | D30: 2 | H30: 232.6 | I30: =H30 -> 232.6
P31: =P18*200+P25*200+P29*200 -> 6000 | Q31: =P31/(I18+I26+I30) -> 7.758049483 | R31: =R18*200+R25*200+R29*200 -> 6000 | S31: =R31/(I18+I26+I30) -> 7.758049483
B32: Ведомость вертикальных элементов секций 3,4 (на один этаж)
B33: Колонны
E34: длина | F34: ширина | G34: высота | H34: Vм³ | I34: Общий Vм³
B35: К-1.1; К-1.1* | C35: шт | D35: 29 | E35: 0.2 | F35: 0.8 | G35: 2.82 | H35: =E35*F35*G35 -> 0.4512 | I35: =(H35*D35)+(H36*D36)+H37*D37+H38*D38 -> 22.1088
B36: К-1.2 | C36: шт | D36: 12 | E36: 0.2 | F36: 0.8 | G36: 2.82 | H36: =E36*F36*G36 -> 0.4512
B37: К-2.1 | C37: шт | D37: 7 | E37: 0.2 | F37: 0.8 | G37: 2.82 | H37: 0.4512
B38: К-3.1а | C38: шт | D38: 1 | E38: 0.2 | F38: 0.8 | G38: 2.82 | H38: 0.4512
B40: СТЕНЫ
E41: длина | F41: ширина | G41: высота | H41: Vм³ | I41: Общий Vм³
B42: Стена Ст-2.1 | C42: п/м | D42: 32.6 | E42: =D42 -> 32.6 | F42: 0.16 | G42: 2.82 | H42: =E42*F42*G42 -> 14.70912 | I42: =H42*D42 -> 479.517312
B44: Плита перекрытия
E45: длина | F45: ширина | G45: высота | H45: Vм³ | I45: Общий Vм³
B46: Плита перекрытия П-1; П-2 | C46: шт | D46: 2 | H46: 232.6 | I46: =H46 -> 232.6
B48: Ведомость вертикальных элементов секций 5 (на один этаж)
B49: Колонны
E50: длина | F50: ширина | G50: высота | H50: Vм³ | I50: Общий Vм³
B51: К-1.1; К-1.1* | C51: шт | D51: 25 | E51: 0.2 | F51: 0.8 | G51: 2.82 | H51: =E51*F51*G51 -> 0.4512 | I51: =H51*D51+H52*D52+H53*D53 -> 18.048
B52: К-1.2 | C52: шт | D52: 9 | E52: 0.2 | F52: 0.8 | G52: 2.82 | H52: =E52*F52*G52 -> 0.4512
B53: К-2.1 | C53: шт | D53: 6 | E53: 0.2 | F53: 0.8 | G53: 2.82 | H53: 0.4512
B55: СТЕНЫ
E56: длина | F56: ширина | G56: высота | H56: Vм³ | I56: Общий Vм³
B57: Стена Ст-2.1 | C57: п/м | D57: 15.2 | E57: =D57 -> 15.2 | F57: 0.16 | G57: 2.82 | H57: =E57*F57*G57 -> 6.85824 | I57: =H57*D57 -> 104.245248
B59: Плита перекрытия
E60: длина | F60: ширина | G60: высота | H60: Vм³ | I60: Общий Vм³
B61: Плита перекрытия П-3; П-4 | C61: шт | D61: 1 | H61: 193.3 | I61: =H61*D61 -> 193.3
B63: Ведомость вертикальных элементов секций 6,7 (на один этаж)
B64: Колонны
E65: длина | F65: ширина | G65: высота | H65: Vм³ | I65: Общий Vм³
B66: К-1.1 | C66: шт | D66: 21 | E66: 0.2 | F66: 0.8 | G66: 2.82 | H66: =E66*F66*G66 -> 0.4512 | I66: =H66*D66+H67*D67+H68*D68+H69*D69 -> 30.2304
B67: К-1.2 | C67: шт | D67: 17 | E67: 0.2 | F67: 0.8 | G67: 2.82 | H67: =E67*F67*G67 -> 0.4512
B68: К-1.3 | C68: шт | D68: 16 | E68: 0.2 | F68: 0.8 | G68: 2.82 | H68: 0.4512
B69: К-2.2 | C69: шт | D69: 13 | E69: 0.2 | F69: 0.8 | G69: 2.82 | H69: 0.4512
B71: СТЕНЫ
E72: длина | F72: ширина | G72: высота | H72: Vм³ | I72: Общий Vм³
B73: Стена Ст-2.1 | C73: п/м | D73: 33.4 | E73: =D73 -> 33.4 | F73: 0.16 | G73: 2.82 | H73: =E73*F73*G73 -> 15.07008 | I73: =H73*D73+H74*D74+H75*D75+H76*D76 -> 681.136032
B74: Стена Ст-3.1 | C74: п/м | D74: 15.2 | E74: =D74 -> 15.2 | F74: 0.16 | G74: 2.82 | H74: =E74*F74*G74 -> 6.85824
B75: Стена Ст-3.2 | C75: п/м | D75: 12.5 | E75: =D75 -> 12.5 | F75: 0.16 | G75: 2.82 | H75: =E75*F75*G75 -> 5.64
B76: Стена Ст-3.3 | C76: п/м | D76: 2.6 | E76: =D76 -> 2.6 | F76: 0.16 | G76: 2.82 | H76: =E76*F76*G76 -> 1.17312
B78: Плита перекрытия
E79: длина | F79: ширина | G79: высота | H79: Vм³ | I79: Общий Vм³
B80: Плита перекрытия П-4 | C80: шт | D80: 1 | H80: 121.3 | I80: =H80*D80 -> 121.3
